bitfinex-derivatives/quotes_BTCF0:USTF0_20251208
["timestamp","ask_amount","ask_price","bid_price","bid_amount"]
[1765234993673,0.06055,90920.0,90919.0,0.05846495]
[1765234994073,0.07791,90920.0,90919.0,0.00116495]
[1765234998696,0.05655,90896.0,90895.0,0.0683007]
[1765234998883,0.0675506,90896.0,90895.0,0.0798617]
[1765234999384,0.30263726,90910.0,90902.0,0.0109999]
[1765234999589,0.05655,90903.0,90902.0,0.0682999]
[1765234999989,0.0675498,90903.0,90902.0,0.0682999]
[1765235000787,0.01116325,90915.0,90914.0,0.0573]
[1765235000991,0.06771325,90915.0,90914.0,0.0573]
[1765235002682,0.05655,90903.0,90902.0,0.002]
[1765235002877,0.0675498,90903.0,90902.0,0.002]
[1765235003181,0.05655,90902.0,90901.0,0.0683]
[1765235003592,0.05655,90902.0,90901.0,0.0573]
[1765235004292,0.01716,90909.0,90897.0,0.00016495]
[1765235004293,0.0675504,90898.0,90897.0,0.00016495]
[1765235004889,0.001,90902.0,90901.0,0.0683]
[1765235005079,0.06864493,90940.0,90939.0,0.0573]
[1765235005285,0.05655,90931.0,90930.0,0.0109965]
[1765235005485,0.01716,90936.0,90909.0,0.60815036]
[1765235005686,0.0675461,90934.0,90933.0,0.0398861]
[1765235005887,0.05655,90934.0,90933.0,0.0682961]
[1765235006792,0.05855,90934.0,90933.0,0.0692961]
[1765235007396,0.05755,90934.0,90933.0,0.0702961]
[1765235007597,0.001,90934.0,90933.0,0.0702961]
[1765235008101,0.00109963,90940.0,90939.0,0.0682954]
[1765235009590,0.00209963,90940.0,90939.0,0.0682954]
[1765235010087,0.0675426,90963.0,90962.0,0.0573]
[1765235010283,0.05655,90963.0,90962.0,0.0573]
[1765235011295,0.00109933,90965.0,90960.0,0.0109928]
[1765235011296,0.00109933,90965.0,90964.0,0.0573]
[1765235011693,0.02867933,90965.0,90964.0,0.0573]
[1765235011899,0.05764933,90965.0,90964.0,0.0573]
[1765235013001,0.05964933,90965.0,90964.0,0.0573]
[1765235013403,0.06264933,90965.0,90964.0,0.0583]
[1765235016901,0.06264933,90965.0,90964.0,0.001]
[1765235017395,0.03367933,90965.0,90964.0,0.0583]
[1765235017701,0.06264933,90965.0,90964.0,0.0583]
[1765235020708,0.00609933,90965.0,90964.0,0.0583]
[1765235021108,0.03367933,90965.0,90964.0,0.0583]
[1765235021310,0.06264933,90965.0,90964.0,0.0583]
[1765235021514,0.06264933,90965.0,90964.0,0.06968438]
[1765235022012,0.00609933,90965.0,90964.0,0.06968438]
[1765235025111,0.06512933,90965.0,90964.0,0.06968438]
[1765235025508,0.07612163,90965.0,90964.0,0.06968438]
[1765235025713,0.07612163,90965.0,90964.0,0.04079438]
[1765235026115,0.07612163,90965.0,90964.0,0.06983438]
[1765235028310,0.07612163,90965.0,90964.0,0.01238438]
[1765235028711,0.07612163,90965.0,90964.0,0.001]
[1765235029217,0.07612163,90965.0,90945.0,0.0109946]
[1765235029218,0.0700236,90954.0,90945.0,0.0109946]
[1765235029422,0.0700236,90954.0,90942.0,0.0109951]
[1765235029721,0.0700236,90954.0,90950.0,0.01137293]
[1765235030117,0.0700236,90954.0,90953.0,0.05671495]
[1765235031624,0.0710236,90954.0,90953.0,0.05871495]
[1765235032522,0.0700236,90954.0,90953.0,0.05671495]
[1765235032711,0.0720236,90954.0,90953.0,0.05771495]
[1765235033136,0.0730236,90954.0,90953.0,0.00116495]
[1765235034323,0.0730236,90954.0,90953.0,0.02867495]
[1765235034524,0.0710236,90954.0,90953.0,0.02767495]
[1765235034820,0.0730236,90954.0,90953.0,0.02867495]
[1765235035719,0.0730236,90954.0,90953.0,0.05771495]
[1765235036811,0.06203,90954.0,90953.0,0.05771495]
[1765235038923,0.06203,90954.0,90953.0,0.00116495]
[1765235039125,0.08682187,90954.0,90953.0,0.00116495]
[1765235039324,0.05903,90938.0,90937.0,0.05655]
[1765235039516,0.0700268,90928.0,90927.0,0.05655]
[1765235039826,0.05903,90928.0,90927.0,0.03916446]
[1765235040327,0.05903,90928.0,90927.0,0.06820446]
[1765235041226,0.002,90928.0,90927.0,0.07520446]
[1765235042016,0.00016495,90937.0,90936.0,0.02709]
[1765235042220,0.00016495,90937.0,90936.0,0.06799]
[1765235044136,0.00116495,90937.0,90936.0,0.07099]
[1765235045126,0.00016495,90937.0,90936.0,0.06799]
[1765235045321,0.00116495,90937.0,90936.0,0.07099]
[1765235046039,0.00116495,90937.0,90936.0,0.07199]
[1765235047920,0.069823,90959.0,90958.0,0.05502]
[1765235049229,0.05992933,90965.0,90964.0,0.05502]
[1765235049528,0.0847138,90965.0,90964.0,0.05502]
[1765235050526,0.05992933,90965.0,90964.0,0.05502]
[1765235050835,0.05992933,90965.0,90964.0,0.05602]
[1765235050836,0.06092933,90965.0,90964.0,0.05602]
[1765235051325,0.06192933,90965.0,90964.0,0.05602]
[1765235053540,0.06192933,90965.0,90964.0,0.0670124]
[1765235054237,0.07292163,90965.0,90964.0,0.0670124]
[1765235054735,0.07292163,90965.0,90964.0,0.05602]
[1765235054933,0.07292163,90965.0,90964.0,0.02809]
[1765235056941,0.07292163,90965.0,90964.0,0.07118]
[1765235057737,0.07292163,90965.0,90964.0,0.0821724]
[1765235058640,0.07292163,90965.0,90964.0,0.07118]
[1765235059142,0.07292163,90965.0,90964.0,0.0821724]
[1765235060544,0.07292163,90965.0,90964.0,0.07118]
[1765235062837,0.07292163,90965.0,90964.0,0.016]
[1765235064040,0.07292163,90965.0,90964.0,0.07379]
[1765235064240,0.06192933,90965.0,90964.0,0.07379]
[1765235066250,0.00309933,90965.0,90964.0,0.07379]
[1765235066649,0.03272933,90965.0,90964.0,0.07379]
[1765235068046,0.06112933,90965.0,90964.0,0.07379]
[1765235070658,0.00309933,90965.0,90964.0,0.07379]
[1765235071552,0.0109906,90979.0,90964.0,0.07379]
[1765235071553,0.05803,90979.0,90978.0,0.05779]
[1765235071846,0.00109903,90990.0,90989.0,0.0687794]
[1765235073138,0.00109903,90990.0,90989.0,0.0697794]
[1765235073139,0.00209903,90990.0,90989.0,0.0697794]
[1765235073542,0.00309903,90990.0,90989.0,0.08127744]
[1765235073742,0.07211833,90990.0,90989.0,0.07028804]
[1765235075050,0.07211833,90990.0,90989.0,0.01249804]
[1765235075652,0.07211833,90990.0,90989.0,0.001]
[1765235076356,0.09758158,90990.0,90989.0,0.001]
[1765235082650,0.05769,90970.0,90969.0,0.07047665]
[1765235083252,0.05769,90970.0,90969.0,0.08194932]
[1765235084261,0.0686817,90970.0,90969.0,0.08194932]
[1765235085158,0.0696817,90970.0,90969.0,0.08294932]
[1765235089066,0.05869,90970.0,90969.0,0.08294932]
[1765235089766,0.05869,90970.0,90969.0,0.07195762]
[1765235091569,0.001,90970.0,90969.0,0.07195762]
[1765235093460,0.05869,90970.0,90969.0,0.07195762]
[1765235094458,0.03037,90970.0,90969.0,0.07195762]
[1765235094660,0.001,90970.0,90969.0,0.07195762]
[1765235095164,0.05869,90970.0,90969.0,0.07195762]
[1765235101665,0.001,90970.0,90969.0,0.08294942]
[1765235103764,0.05895,90985.0,90984.0,0.0872399]
[1765235103966,0.02509799,90985.0,90984.0,0.0872399]
[1765235104164,0.06004903,90990.0,90989.0,0.05863]
[1765235104966,0.00109903,90990.0,90989.0,0.05863]
[1765235105170,0.00309903,90990.0,90989.0,0.05963]
[1765235106469,0.00409903,90990.0,90989.0,0.05963]
[1765235107267,0.00309903,90990.0,90989.0,0.05963]
[1765235107461,0.01782,91014.0,91006.0,0.05863]
[1765235107462,0.05895,91007.0,91006.0,0.05863]
[1765235107661,0.08404233,91007.0,91006.0,0.05863]
[1765235108073,0.05895,91007.0,91006.0,0.05863]
[1765235108769,0.00109873,91015.0,91014.0,0.05863]
[1765235108770,0.04120503,91015.0,91014.0,0.05863]
[1765235108974,0.07103503,91015.0,91014.0,0.07625]
[1765235109272,0.07103503,91015.0,91014.0,0.05863]
[1765235110967,0.07603503,91015.0,91014.0,0.05963]
[1765235111178,0.07903503,91015.0,91014.0,0.05963]
[1765235111478,0.07903503,91015.0,91014.0,0.001]
[1765235112978,0.07903503,91015.0,91014.0,0.03062]
[1765235113579,0.07903503,91015.0,91014.0,0.05916]
[1765235113985,0.07903503,91015.0,91014.0,0.001]
[1765235115581,0.07903503,91015.0,91014.0,0.05893]
[1765235115985,0.05674,91035.0,91034.0,0.068914]
[1765235116183,0.05783842,91040.0,91039.0,0.05793]
[1765235116581,0.05783842,91040.0,91039.0,0.0693373]
[1765235116789,0.05783842,91040.0,91039.0,0.0114073]
[1765235116993,0.05783842,91040.0,91039.0,0.05793]
[1765235117283,0.05783842,91040.0,91039.0,0.02939]
[1765235117486,0.05783842,91040.0,91039.0,0.04083352]
[1765235117679,0.06383842,91040.0,91039.0,0.07037352]
[1765235117988,0.06383842,91040.0,91039.0,0.001]
[1765235118188,0.46383842,91040.0,91039.0,0.001]
[1765235118392,0.06383842,91040.0,91039.0,0.05893]
[1765235118582,0.06583842,91040.0,91039.0,0.05893]
[1765235120777,0.06583842,91040.0,91039.0,0.001]
[1765235121688,0.06583842,91040.0,91039.0,0.05893]
[1765235125088,0.06583842,91040.0,91039.0,0.001]
[1765235126190,0.0677249,91026.0,91025.0,0.02955485]
[1765235126391,0.0677249,91026.0,91025.0,0.00016485]
[1765235127386,0.0677249,91026.0,91025.0,0.00216485]
[1765235128199,0.0687249,91026.0,91025.0,0.00216485]
[1765235129101,0.0687249,91026.0,91025.0,0.06009485]
[1765235129696,0.0687249,91026.0,91025.0,0.00216485]
[1765235130726,0.0677263,91015.0,91014.0,0.01218545]
[1765235131009,0.05674,90993.0,90992.0,0.05793]
[1765235131304,0.05674,90981.0,90980.0,0.05793]
[1765235132009,0.05674,90981.0,90980.0,0.0699994]
[1765235132807,0.05674,90981.0,90980.0,0.0719994]
[1765235133003,0.05674,90981.0,90980.0,0.0809994]
[1765235133203,0.05774,90981.0,90980.0,0.0809994]
[1765235135308,0.05774,90981.0,90980.0,0.0524594]
[1765235135808,0.05774,90981.0,90980.0,0.0809994]
[1765235139208,0.05774,90981.0,90980.0,0.011]
[1765235140408,0.05774,90981.0,90974.0,0.03319]
[1765235140409,0.0677311,90975.0,90974.0,0.03319]
[1765235141511,0.0677311,90975.0,90974.0,0.03419]
[1765235141699,0.0677311,90975.0,90974.0,0.001]
[1765235142100,0.05674,90972.0,90971.0,0.00016485]
[1765235142302,0.05657,90965.0,90964.0,0.015]
[1765235143304,0.0675623,90965.0,90964.0,0.015]
[1765235143914,0.0685623,90965.0,90964.0,0.017]
[1765235144410,0.0685623,90965.0,90964.0,0.07521]
[1765235144610,0.0685623,90965.0,90964.0,0.07621]
[1765235145315,0.001,90965.0,90964.0,0.07621]
[1765235145911,0.05609,90982.0,90976.0,0.01494]
[1765235146100,0.0670803,90982.0,90981.0,0.05821]
[1765235146713,0.05609,90973.0,90972.0,0.0401015]
[1765235146911,0.05609,90973.0,90972.0,0.0692015]
[1765235147302,0.05609,90973.0,90972.0,0.05821]
[1765235147615,0.05609,90971.0,90970.0,0.02927485]
[1765235148114,0.05609,90971.0,90970.0,0.05837485]
[1765235148613,0.05609,90971.0,90970.0,0.00016485]
[1765235148802,0.05609,90965.0,90964.0,0.015]
[1765235149113,0.0670823,90965.0,90964.0,0.015]
[1765235150111,0.0680823,90965.0,90964.0,0.018]
[1765235150412,0.0680823,90965.0,90964.0,0.019]
[1765235151898,0.067083,90959.0,90958.0,0.02523759]
[1765235152302,0.067083,90959.0,90958.0,9.759e-05]
[1765235153112,0.067083,90959.0,90958.0,0.05830759]
[1765235153408,0.068083,90959.0,90958.0,0.07330079]
[1765235153602,0.001,90959.0,90958.0,0.07330079]
[1765235153804,0.001,90959.0,90958.0,0.07530079]
[1765235155004,0.05709,90959.0,90958.0,0.07530079]
[1765235155209,0.001,90959.0,90958.0,0.07530079]
[1765235156106,0.05709,90959.0,90958.0,0.07530079]
[1765235157112,0.05709,90959.0,90958.0,0.06430759]
[1765235158219,0.05709,90959.0,90958.0,0.07530079]
[1765235160616,0.05709,90959.0,90958.0,0.00609759]
[1765235161221,0.08257845,90959.0,90958.0,0.00609759]
[1765235161523,0.0679752,90941.0,90940.0,0.00109963]
[1765235162323,0.0679767,90929.0,90928.0,0.02781]
[1765235162529,0.06807429,90929.0,90928.0,0.02781]
[1765235162721,0.0679775,90922.0,90921.0,0.0688076]
[1765235162920,0.05698,90922.0,90921.0,0.0688076]
[1765235163714,0.02965,90922.0,90921.0,0.0688076]
[1765235164317,0.02965,90922.0,90921.0,0.08068854]
[1765235164926,0.0109971,90926.0,90921.0,0.08068854]
[1765235164927,0.05907759,90929.0,90928.0,0.05781]
[1765235165525,9.759e-05,90929.0,90928.0,0.0688068]
[1765235166222,0.00509759,90929.0,90928.0,0.0708068]
[1765235167711,0.03474759,90929.0,90928.0,0.0708068]
[1765235168129,0.06207759,90929.0,90928.0,0.0708068]
[1765235170230,0.03474759,90929.0,90928.0,0.0708068]
[1765235170529,0.06207759,90929.0,90928.0,0.0708068]
[1765235172733,0.06207759,90929.0,90928.0,0.05981]
[1765235177933,0.06207759,90929.0,90928.0,0.0708068]
[1765235178342,0.06207759,90929.0,90928.0,0.05981]
[1765235178530,0.06207759,90929.0,90928.0,0.002]
[1765235178928,0.0676977,90920.0,90919.0,0.00016495]
[1765235179131,0.0842482,90916.0,90909.0,0.010999]
[1765235179529,0.0842482,90916.0,90914.0,0.01191348]
[1765235181140,0.0862482,90916.0,90915.0,0.00509993]
[1765235182642,0.0862482,90916.0,90915.0,0.00309993]
[1765235188141,0.0862482,90916.0,90915.0,0.03091993]
[1765235188332,0.0862482,90916.0,90915.0,0.06073993]
[1765235189345,0.0696982,90916.0,90915.0,0.06073993]
[1765235189531,0.0587,90916.0,90915.0,0.06073993]
[1765235190762,0.002,90916.0,90915.0,0.06073993]
[1765235191134,0.002,90916.0,90915.0,0.46073993]
[1765235192440,0.05679759,90929.0,90928.0,0.05764]
[1765235192638,0.08239476,90929.0,90928.0,0.05764]
[1765235193543,0.08239476,90929.0,90928.0,0.0686368]
[1765235193846,0.08839476,90929.0,90928.0,0.0686368]
[1765235194228,0.04359079,90956.0,90937.0,0.0860557]
[1765235194432,0.04359079,90956.0,90955.0,0.0686335]
[1765235194635,0.0567,90979.0,90978.0,0.05764]
[1765235195239,0.0567,90979.0,90978.0,0.06939255]
[1765235196445,0.0567,90979.0,90975.0,0.010991]
[1765235196446,0.0567,90970.0,90969.0,0.05780495]
[1765235197235,0.0567,90970.0,90969.0,0.0696528]
[1765235197536,0.0607,90979.0,90978.0,0.05764]
[1765235197741,0.0607,90979.0,90978.0,0.0686307]
[1765235198042,0.0567,90979.0,90978.0,0.0686307]
[1765235198542,0.0567,90979.0,90978.0,0.05764]
[1765235198944,0.0567,90979.0,90978.0,0.0686307]
[1765235199449,0.0587,90979.0,90978.0,0.0696307]
[1765235201855,0.002,90979.0,90978.0,0.0696307]
[1765235202350,0.03057,90979.0,90978.0,0.0696307]
[1765235202542,0.06053,90979.0,90978.0,0.0696307]
[1765235208039,0.06053,90979.0,90978.0,0.001]
[1765235208251,0.06053,90979.0,90978.0,0.05822]
[1765235209242,0.002,90979.0,90978.0,0.05822]
[1765235209543,0.002,90979.0,90978.0,0.0692107]
[1765235211246,0.06026,90979.0,90978.0,0.05822]
[1765235213342,0.07659,90979.0,90978.0,0.001]
[1765235217449,0.07659,90979.0,90978.0,0.05822]
[1765235217650,0.07659,90979.0,90978.0,0.03092]
[1765235219155,0.07659,90979.0,90978.0,0.001]
[1765235219358,0.07659,90979.0,90978.0,0.03092]
[1765235219553,0.07659,90979.0,90978.0,0.001]
[1765235220554,0.0692517,90970.0,90969.0,0.00016495]
[1765235221360,0.0692517,90970.0,90969.0,0.03008495]
[1765235221761,0.0692517,90970.0,90969.0,0.03108495]
[1765235222055,0.0692517,90970.0,90969.0,0.03308495]
[1765235222255,0.0702517,90970.0,90969.0,0.04407675]
[1765235222461,0.05926,90970.0,90969.0,0.07294675]
[1765235222655,0.0702517,90970.0,90969.0,0.07294675]
[1765235224465,0.09584129,90970.0,90969.0,0.07294675]
[1765235225259,0.09584129,90970.0,90969.0,0.00316495]
[1765235229456,0.09584129,90970.0,90969.0,0.03300495]
[1765235229663,0.09584129,90970.0,90969.0,0.07286675]
[1765235230368,0.09584129,90970.0,90969.0,0.00316495]
[1765235233772,0.09584129,90970.0,90969.0,0.05925495]
[1765235234473,0.09584129,90970.0,90969.0,0.07024675]
[1765235235063,0.09584129,90970.0,90969.0,0.05925495]
[1765235235874,0.09584129,90970.0,90969.0,0.00316495]
[1765235236681,0.09584129,90970.0,90969.0,0.05925495]
[1765235240470,0.09584129,90970.0,90969.0,0.00316495]
[1765235241477,0.09584129,90970.0,90969.0,0.03129495]
[1765235241974,0.09584129,90970.0,90969.0,0.04228675]
[1765235243072,0.09584129,90970.0,90969.0,0.03129495]
[1765235244379,0.09584129,90970.0,90969.0,0.00316495]
[1765235245480,0.09584129,90970.0,90969.0,0.03129495]
[1765235246378,0.09592239,90970.0,90969.0,0.03129495]
[1765235246782,0.09592239,90970.0,90969.0,0.05925495]
[1765235247678,0.09592239,90970.0,90969.0,0.03129495]
[1765235248567,0.09592239,90970.0,90969.0,0.00316495]
[1765235248882,0.0675735,90955.0,90954.0,0.13505036]
[1765235249081,0.0675735,90955.0,90954.0,0.05609]
[1765235249675,0.0675735,90955.0,90954.0,0.06781734]
[1765235250274,0.0675735,90955.0,90954.0,0.07281734]
[1765235250479,0.0685735,90955.0,90954.0,0.07281734]
[1765235250881,0.0685735,90955.0,90954.0,0.07581734]
[1765235251482,0.0685735,90955.0,90954.0,0.01972734]
[1765235251679,0.0685735,90955.0,90945.0,0.02829495]
[1765235251680,0.0675746,90946.0,90945.0,0.02829495]
[1765235251880,0.0675746,90946.0,90945.0,0.00016495]
[1765235252080,0.09327173,90946.0,90945.0,0.00016495]
[1765235252285,0.0675746,90946.0,90945.0,0.00016495]
[1765235252885,0.09724979,90946.0,90945.0,0.00116495]
[1765235253283,0.0675746,90946.0,90945.0,0.00016495]
[1765235253483,0.0755746,90946.0,90945.0,0.00216495]
[1765235254890,0.0775746,90946.0,90945.0,0.00216495]
[1765235257579,0.06658,90946.0,90945.0,0.00216495]
[1765235257782,0.02870495,90964.0,90963.0,0.0670825]
[1765235257981,0.00016495,90964.0,90963.0,0.0670825]
[1765235258190,0.02870495,90964.0,90963.0,0.0670825]
[1765235258407,0.05674495,90964.0,90963.0,0.0670825]
[1765235258805,0.01716,90984.0,90963.0,0.0670825]
[1765235258806,0.05658,90984.0,90983.0,0.0670801]
[1765235260191,0.05658,90984.0,90983.0,0.0680801]
[1765235260398,0.06458,90984.0,90983.0,0.0680801]
[1765235260800,0.06558,90984.0,90983.0,0.0680801]
[1765235261699,0.05758,90984.0,90983.0,0.0670801]
[1765235261902,0.06458,90984.0,90983.0,0.0690801]
[1765235262706,0.06358,90984.0,90983.0,0.0690801]
[1765235262906,0.06458,90984.0,90983.0,0.0690801]
[1765235263597,0.06458,90984.0,90983.0,0.05809]
[1765235267604,0.06458,90984.0,90983.0,0.002]
[1765235268206,0.06458,90984.0,90983.0,0.03059]
[1765235268408,0.06458,90984.0,90983.0,0.0585]
[1765235273716,0.008,90984.0,90983.0,0.0585]
[1765235279425,0.0678365,91013.0,91012.0,0.0565]
[1765235279827,0.02905,91013.0,91012.0,0.0565]
[1765235280023,0.05794873,91015.0,91014.0,0.07391]
[1765235280319,0.05794873,91015.0,91014.0,0.0565]
[1765235280817,0.0579,91013.0,91012.0,0.0114031]
[1765235281025,0.0649,91013.0,91012.0,0.002]
[1765235281828,0.0669,91013.0,91012.0,0.002]
[1765235282123,0.0579,91006.0,91005.0,0.07048027]
[1765235283125,0.0688874,91006.0,91005.0,0.07048027]
[1765235283327,0.0698874,91006.0,91005.0,0.07048027]
[1765235283722,0.02982,91006.0,91005.0,0.08146777]
[1765235284129,0.0599,91006.0,91005.0,0.08246777]
[1765235288730,0.0599,91006.0,91005.0,0.07148027]
[1765235288927,0.0599,91006.0,91005.0,0.00116486]
[1765235289131,0.0579,90983.0,90980.0,0.07896036]
[1765235289325,0.01732,90984.0,90978.0,0.05855]
[1765235289326,0.0579,90979.0,90978.0,0.05855]
[1765235289726,0.0579,90979.0,90978.0,0.06999326]
[1765235291124,0.0589,90979.0,90978.0,0.07299326]
[1765235292823,0.001,90979.0,90978.0,0.07299326]
[1765235296537,0.06569,90979.0,90978.0,0.07299326]
[1765235297843,0.001,90979.0,90978.0,0.08398396]
[1765235303042,0.00016486,90988.0,90987.0,0.0691796]
[1765235303247,0.00016486,90988.0,90987.0,0.5800596]
[1765235304331,0.00116486,90988.0,90987.0,0.5810596]
[1765235304536,0.00216486,90988.0,90987.0,0.5810596]
[1765235305740,0.05774486,90988.0,90987.0,0.57007]
[1765235307561,0.00216486,90988.0,90987.0,0.57007]
[1765235311063,0.05774486,90988.0,90987.0,0.57007]
[1765235314255,0.03071486,90988.0,90987.0,0.57007]
[1765235314459,0.00216486,90988.0,90987.0,0.57007]
[1765235320464,0.0665667,91012.0,91011.0,0.05819]
[1765235320659,0.08131455,91012.0,91011.0,0.05819]
[1765235321867,0.08331455,91012.0,91011.0,0.05819]
[1765235322258,0.05758,91012.0,91011.0,0.05819]
[1765235322470,0.05958,91012.0,91011.0,0.05919]
[1765235323461,0.004,91012.0,91011.0,0.05919]
[1765235324975,0.002,91012.0,91011.0,0.05919]
[1765235325166,0.00109873,91015.0,91011.0,0.05819]
[1765235325372,0.00109873,91015.0,91014.0,0.07385]
[1765235326559,0.00209873,91015.0,91014.0,0.07585]
[1765235327975,0.00016486,91021.0,91014.0,0.07585]
[1765235327976,0.00016486,91021.0,91020.0,0.0848357]
[1765235328165,0.00016486,91021.0,91020.0,0.5954757]
[1765235329163,0.00116486,91021.0,91020.0,0.5964757]
[1765235329571,0.00216486,91021.0,91020.0,0.5964757]
[1765235329964,0.00216486,91021.0,91020.0,0.5954757]
[1765235330874,0.00116486,91021.0,91020.0,0.5954757]
[1765235331066,0.00216486,91021.0,91020.0,0.5954757]
[1765235333177,0.00109842,91040.0,91039.0,0.0672134]
[1765235333865,0.02840842,91040.0,91039.0,0.07864882]
[1765235334066,0.05739842,91040.0,91039.0,0.07864882]
[1765235334265,0.05839842,91040.0,91039.0,0.07864882]
[1765235335579,0.05939842,91040.0,91039.0,0.07864882]
[1765235336275,0.00309842,91040.0,91039.0,0.07864882]
[1765235338474,0.05939842,91040.0,91039.0,0.01143542]
[1765235338679,0.0563,91033.0,91032.0,0.0672142]
[1765235338979,0.0563,91033.0,91032.0,0.05623]
[1765235339574,0.0563,91033.0,91032.0,0.0672142]
[1765235339774,0.0563,91033.0,91032.0,0.07869455]
[1765235340482,0.0563,91033.0,91032.0,0.01148035]
[1765235340779,0.0563,91031.0,91030.0,0.00016476]
[1765235341268,0.07347,91014.0,91013.0,0.0401264]
[1765235341474,0.07347,91014.0,91013.0,0.07848913]
[1765235341881,0.07347,91014.0,91013.0,0.01127273]
[1765235342082,0.0563,91012.0,91011.0,0.0401267]
[1765235342283,0.0563,91012.0,91011.0,0.0672167]
[1765235343173,0.0563,91012.0,91011.0,0.05623]
[1765235343775,0.0563,91008.0,91007.0,0.2511]
[1765235344175,0.0672877,91003.0,91002.0,0.00016476]
[1765235344780,0.0672892,90991.0,90990.0,0.00109903]
[1765235345383,0.0672892,90991.0,90990.0,0.01244294]
[1765235345587,0.0563,90991.0,90990.0,0.06911294]
[1765235346585,0.0563,90991.0,90990.0,0.00109903]
[1765235347083,0.0563,90991.0,90990.0,0.02881903]
[1765235347389,0.0563,90991.0,90990.0,0.05634903]
[1765235347587,0.0563,90991.0,90990.0,0.06817388]
[1765235348092,0.0573,90991.0,90990.0,0.06917388]
[1765235349483,0.0563,90991.0,90990.0,0.06917388]
[1765235350281,0.0563,90991.0,90990.0,0.07017388]
[1765235351077,0.0563,90991.0,90990.0,0.00609903]
[1765235351078,0.0573,90991.0,90990.0,0.00609903]
[1765235351485,0.0573,90991.0,90990.0,0.01760303]
[1765235354493,0.0573,90991.0,90990.0,0.04579303]
[1765235354792,0.0573,90991.0,90990.0,0.07567303]
[1765235354987,0.04252,91001.0,91000.0,0.19312674]
[1765235355800,0.0535073,91007.0,91006.0,0.05807]
[1765235356388,0.0535073,91007.0,91000.0,0.11714674]
[1765235356389,0.053508,91001.0,91000.0,0.11714674]
[1765235356789,0.053508,91001.0,91000.0,0.11814674]
[1765235357285,0.053508,91001.0,91000.0,0.11714674]
[1765235357890,0.055508,91001.0,91000.0,0.14533674]
[1765235358097,0.057508,91001.0,91000.0,0.14533674]
[1765235358995,0.057508,91001.0,91000.0,0.19312674]
[1765235359492,0.055508,91001.0,91000.0,0.19312674]
[1765235359690,0.057508,91001.0,91000.0,0.19312674]
[1765235359890,0.055508,91001.0,91000.0,0.19312674]
[1765235360196,0.056508,91001.0,91000.0,0.19312674]
[1765235360397,0.055508,91001.0,91000.0,0.19312674]
[1765235360599,0.054508,91001.0,91000.0,0.19312674]
[1765235361094,0.053508,91001.0,91000.0,0.19312674]
[1765235361300,0.053508,91001.0,91000.0,0.19412674]
[1765235362694,0.054508,91001.0,91000.0,0.19312674]
[1765235362895,0.054508,91001.0,91000.0,0.19412674]
[1765235363292,0.053508,91001.0,91000.0,0.11714674]
[1765235363496,0.055508,91001.0,91000.0,0.11714674]
[1765235365402,0.056508,91001.0,91000.0,0.11714674]
[1765235365904,0.055508,91001.0,91000.0,0.11714674]
[1765235366106,0.057508,91001.0,91000.0,0.11714674]
[1765235368394,0.08309623,91001.0,91000.0,0.11714674]
[1765235369006,0.08309623,91001.0,91000.0,0.19312674]
[1765235369310,0.08311645,91001.0,91000.0,0.19312674]
[1765235370004,0.08111645,91001.0,91000.0,0.19312674]
[1765235370310,0.08211645,91001.0,91000.0,0.19312674]
[1765235371198,0.08011645,91001.0,91000.0,0.19312674]
[1765235371400,0.08111645,91001.0,91000.0,0.19312674]
[1765235372310,0.05985645,91001.0,91000.0,0.19312674]
[1765235372508,0.08111645,91001.0,91000.0,0.19312674]
[1765235372700,0.08011645,91001.0,91000.0,0.19312674]
[1765235372900,0.08211645,91001.0,91000.0,0.19312674]
[1765235373400,0.08011645,91001.0,91000.0,0.19312674]
[1765235373704,0.08111645,91001.0,91000.0,0.19312674]
[1765235380712,0.05985645,91001.0,91000.0,0.19312674]
[1765235382708,0.03859645,91001.0,91000.0,0.19312674]
[1765235382911,0.027674,91001.0,91000.0,0.19312674]
[1765235390807,0.070194,91001.0,91000.0,0.19312674]
[1765235392413,0.070194,91001.0,91000.0,0.17521674]
[1765235400838,0.070194,91001.0,91000.0,0.19224674]
[1765235401932,0.027674,91001.0,91000.0,0.20323484]
[1765235402131,0.070194,91001.0,91000.0,0.19224674]
[1765235406740,0.0535092,90991.0,90990.0,0.00109903]
[1765235406941,0.0791832,90991.0,90990.0,0.07584903]
[1765235408042,0.0791832,90991.0,90990.0,0.07784903]
[1765235408648,0.0791832,90991.0,90990.0,0.07684903]
[1765235409848,0.0801832,90991.0,90990.0,0.07684903]
[1765235413035,0.0376632,90991.0,90990.0,0.07684903]
[1765235413241,0.026674,90991.0,90990.0,0.08783833]
[1765235413447,0.02662413,90991.0,90990.0,0.07684903]
[1765235416353,0.001,90991.0,90990.0,0.07684903]
[1765235416955,0.04798016,90991.0,90990.0,0.07684903]
[1765235422951,0.06924016,90991.0,90990.0,0.07684903]
[1765235427445,0.06924016,90991.0,90990.0,0.00209903]
[1765235428151,0.06924016,90991.0,90984.0,0.01703]
[1765235428152,0.0690399,90985.0,90984.0,0.02842]
[1765235428356,0.0690399,90985.0,90981.0,0.03302476]
[1765235428357,0.0690403,90982.0,90981.0,0.06275476]
[1765235428661,0.09476046,90982.0,90981.0,0.03302476]
[1765235428849,0.09476046,90982.0,90981.0,0.00016476]
[1765235429046,0.0690417,90970.0,90969.0,0.05825381]
[1765235430458,0.0690417,90970.0,90969.0,0.06961649]
[1765235431363,0.0690417,90970.0,90969.0,0.07161649]
[1765235431851,0.0700417,90970.0,90969.0,0.07861649]
[1765235434050,0.0119917,90970.0,90969.0,0.07861649]
[1765235435565,0.001,90970.0,90969.0,0.07861649]
[1765235445075,0.05959,90970.0,90969.0,0.07861649]
[1765235445277,0.07749,90970.0,90969.0,0.06725381]
[1765235445475,0.10323321,90970.0,90969.0,0.00910381]
[1765235446673,0.10323321,90970.0,90969.0,0.00710381]
[1765235446977,0.0695822,90966.0,90965.0,0.05830933]
[1765235447183,0.0695822,90966.0,90965.0,0.00109933]
[1765235447184,0.09532541,90966.0,90965.0,0.00109933]
[1765235448074,0.09642922,90966.0,90965.0,0.00409933]
[1765235448274,0.09642922,90966.0,90965.0,0.06130933]
[1765235448775,0.09742922,90966.0,90965.0,0.05830933]
[1765235448975,0.09942922,90966.0,90965.0,0.05830933]
[1765235449683,0.09742922,90966.0,90965.0,0.05830933]
[1765235449885,0.09842922,90966.0,90965.0,0.05830933]
[1765235450479,0.09942922,90966.0,90965.0,0.05930933]